[Event "*** Titled Tuesday Blitz"]
[Site "Chess.com"]
[Date "2021.04.20"]
[Round "6"]
[White "Ghost_Pepper"]
[Black "Komiagina_Maria"]
[Result "1/2-1/2"]
[WhiteElo "2368"]
[BlackElo "2239"]
[TimeControl "180+1"]
[EndTime "11:06:15 PDT"]
[Termination "Game drawn by stalemate"]

1. e4 {[%clk 0:03:00.9]} 1... c5 {[%clk 0:02:59]} 2. Nf3 {[%clk 0:03:00.9]} 2...
Nc6 {[%clk 0:02:58.7]} 3. g3 {[%clk 0:02:58]} 3... g6 {[%clk 0:02:57.5]} 4. d4
{[%clk 0:02:56.9]} 4... cxd4 {[%clk 0:02:56.3]} 5. Nxd4 {[%clk 0:02:57.8]} 5...
Bg7 {[%clk 0:02:51.5]} 6. Be3 {[%clk 0:02:50.2]} 6... Nf6 {[%clk 0:02:46.8]} 7.
Bg2 {[%clk 0:02:49.1]} 7... O-O {[%clk 0:02:38.5]} 8. O-O {[%clk 0:02:38.8]}
8... Ng4 {[%clk 0:02:29.9]} 9. Qxg4 {[%clk 0:02:22.6]} 9... Nxd4 {[%clk
0:02:29.3]} 10. Qd1 {[%clk 0:02:21.8]} 10... Nc6 {[%clk 0:02:26.9]} 11. Nc3
{[%clk 0:02:12.1]} 11... d6 {[%clk 0:02:26.1]} 12. Kh1 {[%clk 0:02:03.4]} 12...
h5 {[%clk 0:02:10]} 13. f4 {[%clk 0:01:51.5]} 13... Bg4 {[%clk 0:02:08.1]} 14.
Qd3 {[%clk 0:01:14]} 14... Nb4 {[%clk 0:02:00.7]} 15. Qd2 {[%clk 0:01:13.1]}
15... Rc8 {[%clk 0:01:57.3]} 16. a3 {[%clk 0:00:56.1]} 16... Nc6 {[%clk
0:01:49.6]} 17. Nd5 {[%clk 0:00:55.2]} 17... e6 {[%clk 0:01:40.2]} 18. Nb4
{[%clk 0:00:27.9]} 18... h4 {[%clk 0:01:35.2]} 19. Nxc6 {[%clk 0:00:23.1]} 19...
bxc6 {[%clk 0:01:19.3]} 20. Kg1 {[%clk 0:00:16.8]} 20... hxg3 {[%clk 0:01:18.2]}
21. hxg3 {[%clk 0:00:17.3]} 21... Bxb2 {[%clk 0:01:08]} 22. Rab1 {[%clk
0:00:17.3]} 22... Bg7 {[%clk 0:01:06.7]} 23. f5 {[%clk 0:00:16.6]} 23... exf5
{[%clk 0:01:04.3]} 24. exf5 {[%clk 0:00:16.9]} 24... d5 {[%clk 0:01:03.7]} 25.
Bd4 {[%clk 0:00:15.4]} 25... Bxf5 {[%clk 0:00:57.4]} 26. Bxg7 {[%clk 0:00:14.3]}
26... Kxg7 {[%clk 0:00:57.1]} 27. Rb7 {[%clk 0:00:12.8]} 27... Rc7 {[%clk
0:00:50.5]} 28. Rxc7 {[%clk 0:00:12.6]} 28... Qxc7 {[%clk 0:00:49.8]} 29. Rxf5
{[%clk 0:00:13.2]} 29... gxf5 {[%clk 0:00:42]} 30. Qg5+ {[%clk 0:00:13.1]} 30...
Kh7 {[%clk 0:00:39.4]} 31. Qxf5+ {[%clk 0:00:13.4]} 31... Kg7 {[%clk 0:00:39.2]}
32. Qg5+ {[%clk 0:00:13.9]} 32... Kh7 {[%clk 0:00:37.6]} 33. Qh5+ {[%clk
0:00:14.3]} 33... Kg7 {[%clk 0:00:37.5]} 34. Qg5+ {[%clk 0:00:14.7]} 34... Kh7
{[%clk 0:00:37.5]} 35. Bh3 {[%clk 0:00:15.1]} 35... f5 {[%clk 0:00:28.4]} 36.
Bxf5+ {[%clk 0:00:14.9]} 36... Rxf5 {[%clk 0:00:27.9]} 37. Qxf5+ {[%clk
0:00:15.8]} 37... Kg7 {[%clk 0:00:28.1]} 38. Qg5+ {[%clk 0:00:16.1]} 38... Kh7
{[%clk 0:00:25.5]} 39. Kg2 {[%clk 0:00:16.6]} 39... Qd6 {[%clk 0:00:23.1]} 40.
Qf5+ {[%clk 0:00:16.9]} 40... Kg7 {[%clk 0:00:22.7]} 41. a4 {[%clk 0:00:15.8]}
41... a5 {[%clk 0:00:21]} 42. g4 {[%clk 0:00:16]} 42... d4 {[%clk 0:00:19.7]}
43. g5 {[%clk 0:00:15]} 43... c5 {[%clk 0:00:18.9]} 44. Kh3 {[%clk 0:00:14.4]}
44... c4 {[%clk 0:00:17.3]} 45. Kg4 {[%clk 0:00:13.6]} 45... d3 {[%clk
0:00:16.7]} 46. cxd3 {[%clk 0:00:13.2]} 46... cxd3 {[%clk 0:00:16.9]} 47. Kf3
{[%clk 0:00:13.2]} 47... d2 {[%clk 0:00:16.4]} 48. Qf6+ {[%clk 0:00:13.6]} 48...
Qxf6+ {[%clk 0:00:14]} 49. gxf6+ {[%clk 0:00:14.5]} 49... Kxf6 {[%clk
0:00:14.3]} 50. Ke2 {[%clk 0:00:15.1]} 50... Ke5 {[%clk 0:00:14.1]} 51. Kxd2
{[%clk 0:00:16]} 51... Kd4 {[%clk 0:00:14.1]} 52. Kc2 {[%clk 0:00:16.3]} 52...
Kc4 {[%clk 0:00:14.3]} 53. Kb2 {[%clk 0:00:16.9]} 53... Kb4 {[%clk 0:00:14.8]}
54. Ka2 {[%clk 0:00:17.7]} 54... Kxa4 {[%clk 0:00:15.1]} 55. Ka1 {[%clk
0:00:18.6]} 55... Kb3 {[%clk 0:00:15.3]} 56. Kb1 {[%clk 0:00:18.7]} 56... a4
{[%clk 0:00:15.8]} 57. Ka1 {[%clk 0:00:19.6]} 57... a3 {[%clk 0:00:16.2]} 58.
Kb1 {[%clk 0:00:20]} 58... a2+ {[%clk 0:00:16.6]} 59. Ka1 {[%clk 0:00:20.9]}
59... Ka3 {[%clk 0:00:17.1]} 1/2-1/2

[Event "*** Titled Tuesday Blitz"]
[Site "Chess.com"]
[Date "2021.04.20"]
[Round "6"]
[White "GMSrinath"]
[Black "MMSANCHEZ"]
[Result "1-0"]
[WhiteElo "2844"]
[BlackElo "2557"]
[TimeControl "180+1"]
[EndTime "11:06:17 PDT"]
[Termination "GMSrinath won by resignation"]

1. e4 {[%clk 0:03:00.9]} 1... e6 {[%clk 0:02:57.7]} 2. d4 {[%clk 0:03:00.8]}
2... d5 {[%clk 0:02:57.9]} 3. Nd2 {[%clk 0:03:01.4]} 3... c5 {[%clk 0:02:56.9]}
4. Ngf3 {[%clk 0:03:00.6]} 4... cxd4 {[%clk 0:02:56.8]} 5. Nxd4 {[%clk
0:03:01.5]} 5... Nc6 {[%clk 0:02:54.9]} 6. Nxc6 {[%clk 0:03:01.2]} 6... bxc6
{[%clk 0:02:54.9]} 7. Bd3 {[%clk 0:03:02.1]} 7... Nf6 {[%clk 0:02:54.2]} 8. O-O
{[%clk 0:03:02.4]} 8... Bd6 {[%clk 0:02:47.4]} 9. Qe2 {[%clk 0:03:01.4]} 9...
Bc7 {[%clk 0:02:45.7]} 10. Nf3 {[%clk 0:03:00]} 10... h6 {[%clk 0:02:40.6]} 11.
c4 {[%clk 0:02:58.9]} 11... O-O {[%clk 0:02:39.2]} 12. b3 {[%clk 0:02:58.1]}
12... e5 {[%clk 0:01:59.4]} 13. Ba3 {[%clk 0:02:21.7]} 13... Re8 {[%clk
0:01:56.8]} 14. cxd5 {[%clk 0:02:18.9]} 14... cxd5 {[%clk 0:01:56.8]} 15. Rfd1
{[%clk 0:02:19.2]} 15... Bb7 {[%clk 0:01:53.4]} 16. Bb5 {[%clk 0:02:16.9]} 16...
Nxe4 {[%clk 0:01:42]} 17. Bxe8 {[%clk 0:01:59.1]} 17... Qxe8 {[%clk 0:01:41.3]}
18. Rac1 {[%clk 0:01:56.8]} 18... Bb6 {[%clk 0:01:38.6]} 19. Rf1 {[%clk
0:01:52.4]} 19... f6 {[%clk 0:01:35]} 20. Nd2 {[%clk 0:01:51.3]} 20... Ng5
{[%clk 0:00:53.6]} 21. Bc5 {[%clk 0:01:49.1]} 21... Bxc5 {[%clk 0:00:53.3]} 22.
Rxc5 {[%clk 0:01:49]} 22... Ne6 {[%clk 0:00:54.2]} 23. Rcc1 {[%clk 0:01:48]}
23... Nf4 {[%clk 0:00:53.5]} 24. Qg4 {[%clk 0:01:45.3]} 24... d4 {[%clk
0:00:50.6]} 25. Rc7 {[%clk 0:01:42.4]} 25... g6 {[%clk 0:00:17.1]} 26. Rxb7
{[%clk 0:01:32.4]} 26... Qc6 {[%clk 0:00:16.9]} 27. Re7 {[%clk 0:01:22]} 27...
f5 {[%clk 0:00:11]} 28. Qf3 {[%clk 0:01:17.5]} 28... Qxf3 {[%clk 0:00:08]} 29.
Nxf3 {[%clk 0:01:18.1]} 29... Ne2+ {[%clk 0:00:08.7]} 30. Kh1 {[%clk 0:01:18]}
30... e4 {[%clk 0:00:09.6]} 31. Nxd4 {[%clk 0:00:51.2]} 31... Nxd4 {[%clk
0:00:10.5]} 32. Rd1 {[%clk 0:00:51.4]} 32... Rc8 {[%clk 0:00:09.6]} 33. h3
{[%clk 0:00:50.6]} 33... Nc6 {[%clk 0:00:08.4]} 34. Rb7 {[%clk 0:00:50.2]} 34...
Ne5 {[%clk 0:00:06]} 35. Rxa7 {[%clk 0:00:45.6]} 35... Nd3 {[%clk 0:00:06.3]}
36. Kg1 {[%clk 0:00:45.9]} 36... Rc2 {[%clk 0:00:06.1]} 37. a4 {[%clk
0:00:39.5]} 37... Kf8 {[%clk 0:00:05.4]} 38. a5 {[%clk 0:00:40]} 38... Ke8
{[%clk 0:00:05.4]} 39. f3 {[%clk 0:00:39.6]} 39... Ra2 {[%clk 0:00:02]} 40. a6
{[%clk 0:00:24.6]} 40... Nc5 {[%clk 0:00:02.5]} 41. b4 {[%clk 0:00:23.8]} 41...
Rxa6 {[%clk 0:00:01.7]} 42. Rxa6 {[%clk 0:00:17.2]} 42... Nxa6 {[%clk
0:00:02.6]} 43. b5 {[%clk 0:00:15.2]} 43... Nc5 {[%clk 0:00:03.2]} 44. fxe4
{[%clk 0:00:15.8]} 44... fxe4 {[%clk 0:00:03.6]} 45. b6 {[%clk 0:00:13.3]} 45...
Nd7 {[%clk 0:00:01.9]} 46. b7 {[%clk 0:00:12.5]} 46... Nb8 {[%clk 0:00:02.5]}
47. Kf2 {[%clk 0:00:11.9]} 47... e3+ {[%clk 0:00:02.6]} 48. Kxe3 {[%clk
0:00:12.3]} 48... Ke7 {[%clk 0:00:03.4]} 49. Ke4 {[%clk 0:00:12.2]} 49... Ke8
{[%clk 0:00:04.3]} 50. Ke5 {[%clk 0:00:09.7]} 50... Ke7 {[%clk 0:00:05.2]} 51.
Rc1 {[%clk 0:00:09.7]} 51... Nd7+ {[%clk 0:00:05.2]} 52. Kd4 {[%clk 0:00:09.9]}
52... Kd6 {[%clk 0:00:06]} 53. Rc8 {[%clk 0:00:09.5]} 1-0

[Event "*** Titled Tuesday Blitz"]
[Site "Chess.com"]
[Date "2021.04.20"]
[Round "6"]
[White "BanjoKazooieN64"]
[Black "Ermito2020"]
[Result "0-1"]
[WhiteElo "2442"]
[BlackElo "2604"]
[TimeControl "180+1"]
[EndTime "11:06:19 PDT"]
[Termination "Ermito2020 won by resignation"]

1. e4 {[%clk 0:03:00.5]} 1... c5 {[%clk 0:02:59.1]} 2. Nc3 {[%clk 0:03:00.3]}
2... d6 {[%clk 0:02:58.1]} 3. f4 {[%clk 0:02:59.8]} 3... g6 {[%clk 0:02:57.2]}
4. Nf3 {[%clk 0:03:00]} 4... Bg7 {[%clk 0:02:57.5]} 5. Bc4 {[%clk 0:03:00]} 5...
Nc6 {[%clk 0:02:57.4]} 6. O-O {[%clk 0:02:59.3]} 6... Nf6 {[%clk 0:02:57.8]} 7.
d3 {[%clk 0:02:58.4]} 7... O-O {[%clk 0:02:56.9]} 8. Qe1 {[%clk 0:02:58.5]} 8...
Nd4 {[%clk 0:02:56.8]} 9. Qf2 {[%clk 0:02:58.3]} 9... Ng4 {[%clk 0:02:46.7]} 10.
Qh4 {[%clk 0:02:58]} 10... Nxc2 {[%clk 0:02:33.6]} 11. f5 {[%clk 0:02:52.7]}
11... Nxa1 {[%clk 0:01:53]} 12. Qxg4 {[%clk 0:02:23.4]} 12... Nc2 {[%clk
0:01:52]} 13. Qh4 {[%clk 0:02:15.3]} 13... e5 {[%clk 0:01:10.6]} 14. Bg5 {[%clk
0:01:55.2]} 14... Qe8 {[%clk 0:01:09.4]} 15. f6 {[%clk 0:01:45.5]} 15... Bh8
{[%clk 0:01:09.2]} 16. Bh6 {[%clk 0:01:41.2]} 16... Be6 {[%clk 0:00:56.4]} 17.
Ng5 {[%clk 0:01:39.4]} 17... Bxc4 {[%clk 0:00:55]} 18. Bxf8 {[%clk 0:01:33.2]}
18... h5 {[%clk 0:00:52.4]} 19. dxc4 {[%clk 0:01:12.9]} 19... Qxf8 {[%clk
0:00:50.9]} 20. g4 {[%clk 0:01:12.3]} 20... Ne3 {[%clk 0:00:47.1]} 21. gxh5
{[%clk 0:01:10.6]} 21... Qh6 {[%clk 0:00:46.7]} 22. Rf3 {[%clk 0:01:07.7]} 22...
Nxc4 {[%clk 0:00:37.3]} 23. Nd5 {[%clk 0:01:05.4]} 23... Qxh5 {[%clk 0:00:33.1]}
24. Ne7+ {[%clk 0:01:04.9]} 24... Kf8 {[%clk 0:00:32.6]} 25. Qxh5 {[%clk
0:01:03.2]} 25... gxh5 {[%clk 0:00:33.5]} 26. Nd5 {[%clk 0:00:58.5]} 26... Nb6
{[%clk 0:00:30.7]} 27. Ne3 {[%clk 0:00:50.9]} 27... Ke8 {[%clk 0:00:27.5]} 28.
b3 {[%clk 0:00:33.2]} 28... Rc8 {[%clk 0:00:20.6]} 29. Nf5 {[%clk 0:00:32.4]}
29... Kd7 {[%clk 0:00:18.8]} 30. Nxf7 {[%clk 0:00:31.3]} 30... Bxf6 {[%clk
0:00:18.9]} 31. N5xd6 {[%clk 0:00:31.6]} 31... Rg8+ {[%clk 0:00:18.8]} 32. Kf1
{[%clk 0:00:30.9]} 32... Rg6 {[%clk 0:00:19.3]} 33. Nxb7 {[%clk 0:00:28.3]}
33... Ke6 {[%clk 0:00:18.6]} 34. Nfd8+ {[%clk 0:00:23.9]} 34... Kd7 {[%clk
0:00:17.2]} 35. Nf7 {[%clk 0:00:19.7]} 35... Kc6 {[%clk 0:00:15.2]} 36. Na5+
{[%clk 0:00:14.6]} 36... Kb5 {[%clk 0:00:13.9]} 37. Nc4 {[%clk 0:00:09.5]} 37...
Nxc4 {[%clk 0:00:12.1]} 38. bxc4+ {[%clk 0:00:10.4]} 38... Kxc4 {[%clk
0:00:12.9]} 39. Rf5 {[%clk 0:00:07.8]} 39... Kd4 {[%clk 0:00:11.6]} 40. Nd6
{[%clk 0:00:07.7]} 40... c4 {[%clk 0:00:11.4]} 41. Rf2 {[%clk 0:00:06.5]} 41...
c3 {[%clk 0:00:10.9]} 42. Rc2 {[%clk 0:00:06.5]} 42... Kd3 {[%clk 0:00:10.5]}
43. Rc1 {[%clk 0:00:04.6]} 43... c2 {[%clk 0:00:09.6]} 44. Nb5 {[%clk
0:00:02.2]} 44... Bg5 {[%clk 0:00:09.2]} 45. Re1 {[%clk 0:00:01.6]} 0-1

[Event "*** Titled Tuesday Blitz"]
[Site "Chess.com"]
[Date "2021.04.20"]
[Round "6"]
[White "campomania3"]
[Black "chessprincesa1"]
[Result "1/2-1/2"]
[WhiteElo "2202"]
[BlackElo "2326"]
[TimeControl "180+1"]
[EndTime "11:06:19 PDT"]
[Termination "Game drawn by repetition"]

1. d4 {[%clk 0:03:00.9]} 1... Nf6 {[%clk 0:02:57.9]} 2. c4 {[%clk 0:03:01.3]}
2... e6 {[%clk 0:02:57.9]} 3. Nc3 {[%clk 0:03:01.7]} 3... d5 {[%clk 0:02:47.4]}
4. cxd5 {[%clk 0:03:00.1]} 4... exd5 {[%clk 0:02:46.5]} 5. Bg5 {[%clk
0:03:00.5]} 5... Bb4 {[%clk 0:02:41.8]} 6. Nf3 {[%clk 0:02:54]} 6... O-O {[%clk
0:02:30.2]} 7. e3 {[%clk 0:02:52.5]} 7... c6 {[%clk 0:02:14.3]} 8. Bd3 {[%clk
0:02:49]} 8... h6 {[%clk 0:02:05.6]} 9. Bh4 {[%clk 0:02:48]} 9... Bg4 {[%clk
0:01:42.2]} 10. O-O {[%clk 0:02:46.7]} 10... Nbd7 {[%clk 0:01:29]} 11. Qb3
{[%clk 0:02:41.2]} 11... Bd6 {[%clk 0:01:10.3]} 12. Nd2 {[%clk 0:02:34.4]} 12...
Qc7 {[%clk 0:00:45.2]} 13. Bg3 {[%clk 0:02:32.2]} 13... Rfe8 {[%clk 0:00:38.1]}
14. Rac1 {[%clk 0:02:31.1]} 14... a6 {[%clk 0:00:24.9]} 15. e4 {[%clk
0:02:06.6]} 15... Bxg3 {[%clk 0:00:21.9]} 16. hxg3 {[%clk 0:02:03.9]} 16... dxe4
{[%clk 0:00:22.1]} 17. Ndxe4 {[%clk 0:02:01.3]} 17... Nxe4 {[%clk 0:00:22]} 18.
Nxe4 {[%clk 0:01:47.1]} 18... Be6 {[%clk 0:00:18.8]} 19. d5 {[%clk 0:01:39.2]}
19... Bf5 {[%clk 0:00:16.6]} 20. Rfe1 {[%clk 0:01:28.2]} 20... Qa5 {[%clk
0:00:15]} 21. dxc6 {[%clk 0:01:04.1]} 21... bxc6 {[%clk 0:00:15.9]} 22. Re3
{[%clk 0:01:04]} 22... Rab8 {[%clk 0:00:15.3]} 23. Qc3 {[%clk 0:01:02.2]} 23...
Qxc3 {[%clk 0:00:12.4]} 24. Rxc3 {[%clk 0:01:01.8]} 24... Rxb2 {[%clk
0:00:09.4]} 25. Rxc6 {[%clk 0:00:53.4]} 25... Bxe4 {[%clk 0:00:07.5]} 26. Bxe4
{[%clk 0:00:52]} 26... Nf6 {[%clk 0:00:07.1]} 27. Rxf6 {[%clk 0:00:32.6]} 27...
gxf6 {[%clk 0:00:06]} 28. Bh7+ {[%clk 0:00:32.4]} 28... Kf8 {[%clk 0:00:06.6]}
29. Ra3 {[%clk 0:00:29.7]} 29... Re1+ {[%clk 0:00:06.6]} 30. Kh2 {[%clk
0:00:29.2]} 30... Rxf2 {[%clk 0:00:06.5]} 31. Rxa6 {[%clk 0:00:21.3]} 31... Kg7
{[%clk 0:00:06.6]} 32. Bd3 {[%clk 0:00:14.8]} 32... Rd1 {[%clk 0:00:06.9]} 33.
Bc4 {[%clk 0:00:14.3]} 33... Rdd2 {[%clk 0:00:07.2]} 34. Ra7 {[%clk 0:00:12.6]}
34... Rxg2+ {[%clk 0:00:07.6]} 35. Kh3 {[%clk 0:00:12.9]} 35... Rh2+ {[%clk
0:00:08]} 36. Kg4 {[%clk 0:00:12.9]} 36... h5+ {[%clk 0:00:08.5]} 37. Kf3 {[%clk
0:00:11.2]} 37... Rhf2+ {[%clk 0:00:08.5]} 38. Ke3 {[%clk 0:00:11]} 38... Rg2
{[%clk 0:00:08.2]} 39. Bxf7 {[%clk 0:00:09.1]} 39... Rb2 {[%clk 0:00:06.3]} 40.
Bxh5+ {[%clk 0:00:07.8]} 40... Kh6 {[%clk 0:00:04.5]} 41. Bf3 {[%clk 0:00:07.3]}
41... Rxg3 {[%clk 0:00:04.6]} 42. Kf4 {[%clk 0:00:07.5]} 42... Rh3 {[%clk
0:00:04.9]} 43. Be4 {[%clk 0:00:05.5]} 43... Rh4+ {[%clk 0:00:05.1]} 44. Kf3
{[%clk 0:00:03.4]} 44... Rhh2 {[%clk 0:00:05.1]} 45. Rh7+ {[%clk 0:00:01.9]}
45... Kg5 {[%clk 0:00:04.5]} 46. Rg7+ {[%clk 0:00:01.7]} 46... Kh6 {[%clk
0:00:04.3]} 47. Rh7+ {[%clk 0:00:01.8]} 47... Kg5 {[%clk 0:00:04.4]} 48. Rg7+
{[%clk 0:00:02.3]} 48... Kh4 {[%clk 0:00:02.8]} 49. Rh7+ {[%clk 0:00:02.9]}
49... Kg5 {[%clk 0:00:02.9]} 1/2-1/2

[Event "*** Titled Tuesday Blitz"]
[Site "Chess.com"]
[Date "2021.04.20"]
[Round "6"]
[White "Das_Virus_2020"]
[Black "Cuajada_Zero"]
[Result "1-0"]
[WhiteElo "2479"]
[BlackElo "2303"]
[TimeControl "180+1"]
[EndTime "11:06:26 PDT"]
[Termination "Das_Virus_2020 won by checkmate"]

1. e4 {[%clk 0:03:00.9]} 1... c6 {[%clk 0:02:59.3]} 2. d4 {[%clk 0:03:00.4]}
2... d5 {[%clk 0:02:59.9]} 3. Nc3 {[%clk 0:03:00.4]} 3... dxe4 {[%clk
0:03:00.2]} 4. Nxe4 {[%clk 0:03:01.3]} 4... Nf6 {[%clk 0:03:00.7]} 5. Nxf6+
{[%clk 0:03:01.4]} 5... exf6 {[%clk 0:03:01.6]} 6. Be2 {[%clk 0:03:01.7]} 6...
Bd6 {[%clk 0:03:02.1]} 7. Bf3 {[%clk 0:03:02.2]} 7... O-O {[%clk 0:03:02.4]} 8.
Ne2 {[%clk 0:03:02.5]} 8... Re8 {[%clk 0:03:01.9]} 9. c4 {[%clk 0:03:01.9]} 9...
Be6 {[%clk 0:02:59.9]} 10. c5 {[%clk 0:03:01]} 10... Bc7 {[%clk 0:02:59.3]} 11.
O-O {[%clk 0:03:00.5]} 11... Nd7 {[%clk 0:02:56.2]} 12. Bf4 {[%clk 0:02:25]}
12... Nf8 {[%clk 0:02:52.8]} 13. Bg3 {[%clk 0:02:06.1]} 13... Ng6 {[%clk
0:02:51.3]} 14. Qa4 {[%clk 0:01:58.3]} 14... Qd7 {[%clk 0:02:41.4]} 15. Rfd1
{[%clk 0:01:42.5]} 15... Ne7 {[%clk 0:02:36.6]} 16. Nc3 {[%clk 0:01:37]} 16...
Bxg3 {[%clk 0:02:14]} 17. hxg3 {[%clk 0:01:37.9]} 17... Red8 {[%clk 0:02:13.8]}
18. b4 {[%clk 0:01:25]} 18... a6 {[%clk 0:02:13.5]} 19. Rd2 {[%clk 0:01:20.5]}
19... Bd5 {[%clk 0:02:09.9]} 20. Bxd5 {[%clk 0:01:11.7]} 20... Nxd5 {[%clk
0:02:10.8]} 21. Ne4 {[%clk 0:01:11.4]} 21... f5 {[%clk 0:02:02.4]} 22. Nd6
{[%clk 0:01:10.8]} 22... g6 {[%clk 0:01:46.3]} 23. Qb3 {[%clk 0:01:09.3]} 23...
Nf6 {[%clk 0:01:33.3]} 24. Re1 {[%clk 0:01:05.5]} 24... Ne8 {[%clk 0:01:15.8]}
25. Nc4 {[%clk 0:00:39.9]} 25... Rab8 {[%clk 0:00:56.6]} 26. Nb6 {[%clk
0:00:39.1]} 26... Qc7 {[%clk 0:00:54.8]} 27. d5 {[%clk 0:00:35.7]} 27... cxd5
{[%clk 0:00:28.1]} 28. Nxd5 {[%clk 0:00:34.7]} 28... Qd7 {[%clk 0:00:27.8]} 29.
Ne7+ {[%clk 0:00:23.8]} 29... Kf8 {[%clk 0:00:14]} 30. Rxd7 {[%clk 0:00:22.1]}
30... Rxd7 {[%clk 0:00:14.9]} 31. Nd5 {[%clk 0:00:21.3]} 31... Rbd8 {[%clk
0:00:13.2]} 32. Ne3 {[%clk 0:00:14.5]} 32... Rd2 {[%clk 0:00:11.6]} 33. Rd1
{[%clk 0:00:13.5]} 33... Nf6 {[%clk 0:00:11.4]} 34. Rxd2 {[%clk 0:00:12.5]}
34... Rxd2 {[%clk 0:00:12.3]} 35. a4 {[%clk 0:00:11.3]} 35... Ne4 {[%clk
0:00:12.5]} 36. b5 {[%clk 0:00:08.6]} 36... axb5 {[%clk 0:00:11.3]} 37. axb5
{[%clk 0:00:08]} 37... Rxf2 {[%clk 0:00:09.2]} 38. c6 {[%clk 0:00:06.6]} 38...
bxc6 {[%clk 0:00:09.1]} 39. bxc6 {[%clk 0:00:06.5]} 39... Re2 {[%clk 0:00:06.8]}
40. c7 {[%clk 0:00:04.9]} 40... Re1+ {[%clk 0:00:04.2]} 41. Nf1 {[%clk
0:00:03.2]} 41... Nd6 {[%clk 0:00:03.3]} 42. Qb4 {[%clk 0:00:02.6]} 42... Kg7
{[%clk 0:00:02.4]} 43. Qxd6 {[%clk 0:00:01.9]} 43... Rc1 {[%clk 0:00:02.2]} 44.
Qd7 {[%clk 0:00:01.7]} 44... Kh6 {[%clk 0:00:02.6]} 45. c8=Q {[%clk 0:00:02]}
45... Kh5 {[%clk 0:00:03.5]} 46. Qxc1 {[%clk 0:00:01.5]} 46... Kg4 {[%clk
0:00:04.4]} 47. Qcd2 {[%clk 0:00:02.2]} 47... Kh5 {[%clk 0:00:04.7]} 48. Qe2+
{[%clk 0:00:03.1]} 48... Kg5 {[%clk 0:00:04.7]} 49. Qf2 {[%clk 0:00:04]} 49...
Kh6 {[%clk 0:00:05]} 50. Qxf7 {[%clk 0:00:03.1]} 50... g5 {[%clk 0:00:05.2]} 51.
Qf6+ {[%clk 0:00:03.1]} 51... Kh5 {[%clk 0:00:05.3]} 52. Q2xf5 {[%clk
0:00:03.5]} 52... h6 {[%clk 0:00:05.1]} 53. Q5g6+ {[%clk 0:00:03.7]} 53... Kg4
{[%clk 0:00:05.4]} 54. Qf3# {[%clk 0:00:03.5]} 1-0

[Event "*** Titled Tuesday Blitz"]
[Site "Chess.com"]
[Date "2021.04.20"]
[Round "6"]
[White "maximych26"]
[Black "aljado"]
[Result "1-0"]
[WhiteElo "2278"]
[BlackElo "2059"]
[TimeControl "180+1"]
[EndTime "11:06:26 PDT"]
[Termination "maximych26 won on time"]

1. e4 {[%clk 0:03:00.9]} 1... c5 {[%clk 0:02:58.6]} 2. Nf3 {[%clk 0:03:00.9]}
2... e6 {[%clk 0:02:58.5]} 3. c3 {[%clk 0:03:00.1]} 3... d5 {[%clk 0:02:57.2]}
4. exd5 {[%clk 0:02:57.6]} 4... exd5 {[%clk 0:02:56.9]} 5. d4 {[%clk 0:02:57.7]}
5... Nf6 {[%clk 0:02:56.2]} 6. Bd3 {[%clk 0:02:56.1]} 6... cxd4 {[%clk
0:02:54.6]} 7. Nxd4 {[%clk 0:02:54.6]} 7... Bd6 {[%clk 0:02:53.8]} 8. O-O {[%clk
0:02:52.3]} 8... O-O {[%clk 0:02:54]} 9. h3 {[%clk 0:02:52]} 9... Nc6 {[%clk
0:02:53.7]} 10. Nf5 {[%clk 0:02:49]} 10... Bc5 {[%clk 0:02:51.6]} 11. Bg5 {[%clk
0:02:41.8]} 11... Ne5 {[%clk 0:02:44.8]} 12. Bc2 {[%clk 0:02:37.8]} 12... h6
{[%clk 0:02:28.9]} 13. Bh4 {[%clk 0:01:36.7]} 13... Ng6 {[%clk 0:02:25.8]} 14.
Bg3 {[%clk 0:01:36.6]} 14... Re8 {[%clk 0:02:22.5]} 15. Re1 {[%clk 0:01:34.8]}
15... Ne4 {[%clk 0:02:06.5]} 16. Bxe4 {[%clk 0:01:32.7]} 16... dxe4 {[%clk
0:02:05.3]} 17. Ne3 {[%clk 0:01:25.3]} 17... Be6 {[%clk 0:01:41.1]} 18. Nd2
{[%clk 0:01:24.9]} 18... Qd3 {[%clk 0:01:29.6]} 19. Nb3 {[%clk 0:01:24.4]} 19...
Bb6 {[%clk 0:01:21.4]} 20. Qe2 {[%clk 0:01:11.4]} 20... f5 {[%clk 0:01:12.4]}
21. Qh5 {[%clk 0:01:04.4]} 21... f4 {[%clk 0:00:52.8]} 22. Qxg6 {[%clk 0:01:02]}
22... fxg3 {[%clk 0:00:49.6]} 23. Qxg3 {[%clk 0:01:00.9]} 23... Rf8 {[%clk
0:00:32.3]} 24. Rad1 {[%clk 0:00:57.6]} 24... Qb5 {[%clk 0:00:30.8]} 25. Qd6
{[%clk 0:00:41.7]} 25... Bxb3 {[%clk 0:00:22.1]} 26. axb3 {[%clk 0:00:40.8]}
26... Qxb3 {[%clk 0:00:21.6]} 27. Qd5+ {[%clk 0:00:40.9]} 27... Qxd5 {[%clk
0:00:19.5]} 28. Rxd5 {[%clk 0:00:40.7]} 28... Rad8 {[%clk 0:00:19]} 29. Red1
{[%clk 0:00:40]} 29... Rxd5 {[%clk 0:00:17.1]} 30. Rxd5 {[%clk 0:00:39.9]} 30...
Rd8 {[%clk 0:00:17]} 31. Rxd8+ {[%clk 0:00:36.6]} 31... Bxd8 {[%clk 0:00:16.8]}
32. Nc4 {[%clk 0:00:36.7]} 32... Bc7 {[%clk 0:00:14.8]} 33. Kf1 {[%clk
0:00:36.2]} 33... g5 {[%clk 0:00:10.3]} 34. Nd2 {[%clk 0:00:35.5]} 34... e3
{[%clk 0:00:06.2]} 35. fxe3 {[%clk 0:00:35.1]} 35... Kf7 {[%clk 0:00:06.2]} 36.
Kf2 {[%clk 0:00:35.3]} 36... Ke6 {[%clk 0:00:05.9]} 37. Kf3 {[%clk 0:00:35.4]}
37... Kd5 {[%clk 0:00:05.5]} 38. e4+ {[%clk 0:00:34.4]} 38... Ke5 {[%clk
0:00:05]} 39. Nc4+ {[%clk 0:00:33.9]} 39... Ke6 {[%clk 0:00:05]} 40. Ke3 {[%clk
0:00:30.7]} 40... a6 {[%clk 0:00:04.6]} 41. b4 {[%clk 0:00:25]} 41... b5 {[%clk
0:00:03.6]} 42. Nd2 {[%clk 0:00:24]} 42... Be5 {[%clk 0:00:02.8]} 43. c4 {[%clk
0:00:21.8]} 43... Bf4+ {[%clk 0:00:01.7]} 44. Kd3 {[%clk 0:00:20.4]} 44... Bxd2
{[%clk 0:00:02.2]} 45. Kxd2 {[%clk 0:00:20.5]} 45... bxc4 {[%clk 0:00:02.2]} 46.
Kc3 {[%clk 0:00:21.1]} 46... Ke5 {[%clk 0:00:02]} 47. Kxc4 {[%clk 0:00:21.7]}
47... Kxe4 {[%clk 0:00:02.5]} 48. g3 {[%clk 0:00:19.8]} 48... Kf3 {[%clk
0:00:02.2]} 49. h4 {[%clk 0:00:19.5]} 49... Kxg3 {[%clk 0:00:02.2]} 50. hxg5
{[%clk 0:00:19.5]} 50... hxg5 {[%clk 0:00:02.1]} 51. Kc5 {[%clk 0:00:20.2]}
51... Kf4 {[%clk 0:00:02.7]} 52. Kb6 {[%clk 0:00:20.3]} 52... g4 {[%clk
0:00:03.3]} 53. Kxa6 {[%clk 0:00:20.6]} 53... g3 {[%clk 0:00:04]} 54. b5 {[%clk
0:00:21.3]} 54... g2 {[%clk 0:00:04.5]} 55. b6 {[%clk 0:00:22]} 55... g1=Q
{[%clk 0:00:04.9]} 56. b7 {[%clk 0:00:22.4]} 56... Qg2 {[%clk 0:00:02.3]} 57.
b8=Q+ {[%clk 0:00:20.9]} 1-0